Cogmind - Beta 13 @@@ ROGUE MODE // 2024.03.31 @ 14:30:53 Player: Bobby43rocks Result: Self-destructed Performance ------------- Evolutions (1) 500 Regions Visited (2) 400 Robots Destroyed (25) 125 Value Destroyed (635) 635 Prototype IDs (0) 0 Alien Tech Used (0) 0 Bonus (0) 0 TOTAL SCORE: 1660 Bonus ------- None Cogmind --------- Core Integrity 49/400 Matter 286/300 Energy 84/100 System Corruption 0% Temperature Cool (0) Movement Core (700) Ox13 Location -9/Materials Parts ------- > --- POWER (1) -------- (None) > --- PROPULSION (2) --- (None) > --- UTILITY (4) ------ High-capacity Storage Unit Signal Interpreter > --- WEAPON (2) ------- (None) > --- INVENTORY (20) --- Light Ion Engine Improved Aluminum Leg Improved Aluminum Leg Large Storage Unit Signal Interpreter Terrain Scan Processor Weapon Shielding Field Recycling Unit (0) Particle Gun Light EM Pulse Cannon Peak State ------------ > --- POWER ------------ Ion Engine > --- PROPULSION ------- Improved Aluminum Leg Improved Aluminum Leg > --- UTILITY ---------- High-capacity Storage Unit Signal Interpreter ECM Suite Weapon Shielding > --- WEAPON ----------- EM Pulse Gun EM Shotgun > --- INVENTORY -------- Light Treads Improved Aluminum Leg Improved Aluminum Leg VTOL Module VTOL Module Large Storage Unit Signal Interpreter Terrain Scan Processor Seismic Detector Seismic Detector Core Shielding Weapon Shielding Tractor Beam Particle Gun Light EM Pulse Cannon [Rating: 14] Favorites ----------- Power Light Ion Engine Engine Light Ion Engine Propulsion Improved Aluminum Leg Treads Light Treads Leg Improved Aluminum Leg Wheel Wheel Flight Unit Flight Unit Utility Signal Interpreter Device ECM Suite Storage Large Storage Unit Processor Signal Interpreter Protection Weapon Shielding Weapon Medium Laser Energy Gun Medium Laser Energy Cannon Light EM Pulse Cannon Ballistic Gun Light Assault Rifle Launcher Grenade Launcher Build | -11 -10 -9 ------- Run | Yrd Mat Mat Slots Evolved 2 | . . 2 Power . | . . . Propulsion . | . . . Utility 2 | . . 2 Weapon . | . . . Parts Attached 41 | 6 14 21 Power 6 | 1 2 3 Engine 6 | 1 2 3 Core . | . . . Reactor . | . . . Propulsion 16 | 2 5 9 Treads 6 | . . 6 Leg 7 | . 4 3 Wheel 2 | 2 . . Hover . | . . . Flight 1 | . 1 . Utility 7 | 1 2 4 Device 3 | 1 . 2 Storage 2 | . 1 1 Processor 1 | . 1 . Hackware . | . . . Protection 1 | . . 1 Artifact . | . . . Weapon 12 | 2 5 5 Energy Gun 7 | 2 1 4 Energy Cannon 3 | . 3 . Ballistic Gun 1 | . . 1 Ballistic Cannon . | . . . Launcher 1 | . 1 . Special Weapon . | . . . Impact Weapon . | . . . Slashing Weapon . | . . . Piercing Weapon . | . . . Special Melee Weapon . | . . . Unidentified Prototypes . | . . . Parts Lost 11 | . 2 9 Power 1 | . . 1 Propulsion 3 | . . 3 Utility 2 | . . 2 Weapon 5 | . 2 3 Highest Loss Streak 6 | . 1 6 To Critical Strikes . | . . . Average Slot Usage (%) 97 | . 98 97 Engine 12 | . 14 10 Treads 1 | . . 4 Leg 21 | . 24 17 Wheel 1 | . 1 . Device 8 | . 2 16 Storage 11 | . 11 11 Processor 11 | . 12 11 Protection 2 | . . 4 Energy Gun 15 | . 13 17 Energy Cannon 5 | . 9 . Ballistic Gun 1 | . . 2 Launcher 2 | . 4 . Naked Turns . | . . . Heaviest Build 53 | 7 31 53 Greatest Support 40 | 20 26 40 Greatest Overweight (x) 13 | . 2 13 Average Overweight (x) . | . . 1 Largest Inventory Capacity 20 | 5 15 20 Average Capacity 14 | 5 13 18 Most Carried 17 | 4 15 17 Average Carried 11 | 3 11 12 Final Capacity 20 | 5 15 20 Final Carried 15 | 4 15 10 Class Distribution -------------------- 100% | Mutant Dominant Class ---------------- Mutant | -10/Materials Mutant | -9/Materials Resources | -11 -10 -9 ----------- Run | Yrd Mat Mat Matter Collected 603 | 260 189 154 Remotely . | . . . Salvage Created 789 | 42 386 361 Parts 57 | 3 27 27 Haulers Intercepted . | . . . Recyclers Shooed . | . . . Parts Field Recycled . | . . . Retrieved Matter . | . . . Parts Self-Destructed . | . . . Prevented . | . . . Kills | -11 -10 -9 ------- Run | Yrd Mat Mat Combat Hostiles Destroyed 22 | 1 11 10 Guns 13 | 1 3 9 Cannons 5 | . 5 . AOE 3 | . 3 . Classes Destroyed 5 | 1 3 1 Worker 1 | . 1 . Watcher 2 | . 1 1 Swarmer 9 | . 3 6 Grunt 9 | 1 8 . Sentry 4 | . . 4 Best Kill Streak 3 | 1 3 3 Combat Bots Only 3 | 1 3 3 Max Kills in Single Turn 2 | 1 2 1 Gunslinging . | . . . Exploded 2 | . 2 . Melee . | . . . Uniques/NPCs Destroyed . | . . . Combat | -11 -10 -9 -------- Run | Yrd Mat Mat Hostile Shots Fired 185 | 3 34 148 Missed 47 | 2 7 38 Damage Taken 1725 | 10 449 1266 Core 435 | . 84 351 Absorbed by Shields . | . . . Redirected to Shielding 46 | . . 46 Core Remaining (%) 83 | 100 66 . Volleys Fired 71 | 3 34 34 Largest 2 | 2 2 2 Hottest 106 | 90 106 90 Shots Fired 120 | 6 59 55 Gun 94 | 6 33 55 Cannon 19 | . 19 . Launcher 7 | . 7 . Special . | . . . Kinetic 3 | . . 3 Thermal 48 | 6 33 9 Explosive 7 | . 7 . Electromagnetic 62 | . 19 43 Robot Hit Streak 5 | 1 5 5 Robot Miss Streak 5 | 1 5 4 Penetration Max . | . . . Secondary Targets 1 | . . 1 Max Gunslinging Chain 1 | . . 1 Shots Hit Robots 71 | 2 32 37 Core Hits 42 | 2 22 18 Critical Kills . | . . . Critical Parts Destroyed . | . . . Critical Strikes 4 | . 2 2 Burn 3 | . 2 1 Corrupt 1 | . . 1 Melee Attacks . | . . . Impact . | . . . Slashing . | . . . Piercing . | . . . Sneak Attacks . | . . . Combat Hostiles . | . . . Follow-up Attacks . | . . . Damage Inflicted 1354 | 24 878 452 Guns 663 | 24 212 427 Cannons 355 | . 355 . Explosions 330 | . 305 25 Melee . | . . . Ramming 6 | . 6 . Kinetic 16 | . . 16 Thermal 348 | 24 212 112 Explosive 305 | . 305 . Electromagnetic 679 | . 355 324 Impact . | . . . Slashing . | . . . Piercing . | . . . Highest Corruption . | . . . Average Corruption . | . . . Corruption Purged . | . . . Corruption Blocked . | . . . Overload Shots . | . . . Overflow Damage 8 | . 8 . Projectiles 8 | . 8 . Explosions . | . . . Melee . | . . . Knockbacks . | . . . Impact . | . . . Kinetic . | . . . Secondary . | . . . Self-Inflicted Damage 101 | . 101 . Shots 5 | . 5 . Rammed . | . . . Targets Rammed 3 | . 3 . Kicked 3 | . 3 . Crushed . | . . . Highest Temperature 200 | 66 200 172 Average Temperature 66 | 36 77 53 Received Heat Transfer 624 | 6 171 447 Siege Activations . | . . . Robots Corrupted . | . . . Combat Hostiles . | . . . Parts Fried 6 | . 3 3 Impact Corruptions . | . . . Robots Melted 1 | . . 1 Combat Hostiles 1 | . . 1 Parts Melted 4 | . 1 3 Heat Transferred 1234 | 74 777 383 Parts Sabotaged . | . . . Parts Stolen . | . . . Parts Stripped . | . . . Power Chain Reactions 1 | . . 1 Alert | -11 -10 -9 ------- Run | Yrd Mat Mat Peak Influence 157 | 20 157 115 Initial 18 | . 13 18 Average 50 | 16 61 45 Maximum Alert Level . | . . . Low Security (%) 100 | 100 100 100 Level 1 . | . . . Level 2 . | . . . Level 3 . | . . . Level 4 . | . . . Level 5 . | . . . High Security . | . . . Max Security . | . . . Squads Dispatched 2 | . 1 1 Investigation . | . . . Extermination . | . . . Reinforcement 2 | . 1 1 Assault . | . . . Garrison . | . . . Intercept . | . . . Searches Triggered . | . . . Construction Impeded . | . . . Haulers Reinforced . | . . . Active Scanning Responses . | . . . Cargo Convoy Interrupts . | . . . Stealth | -11 -10 -9 --------- Run | Yrd Mat Mat Distress Signals 2 | . 1 1 Communications Jammed . | . . . Distress Signals . | . . . Times Spotted 49 | 1 24 24 Peak Tracking Total 7 | 1 4 7 Tactical Retreats 2 | . . 2 Traps | -11 -10 -9 ------- Run | Yrd Mat Mat Traps Triggered 1 | . 1 . Indirectly . | . . . Trap Hack Attempts . | . . . Triggered . | . . . Disarmed 1 | . 1 . Reprogrammed . | . . . Reused . | . . . Traps Extracted . | . . . Installed . | . . . Triggered . | . . . Machines | -11 -10 -9 ---------- Run | Yrd Mat Mat Machines Disabled . | . . . Max in Single Turn . | . . . Machines Repaired . | . . . Machines Dismantled . | . . . Machines Sabotaged . | . . . Overloaded Fab Kills . | . . . Hacking | -11 -10 -9 --------- Run | Yrd Mat Mat Machines Accessed 7 | . 5 2 Terminals 6 | . 4 2 Fabricators . | . . . Repair Stations . | . . . Recycling Units 1 | . 1 . Scanalyzers . | . . . Garrison Access . | . . . Total Hacks 19 | . 17 2 Successful 14 | . 13 1 Failed 5 | . 4 1 Catastrophic . | . . . Database Lockouts . | . . . Manual . | . . . Terminals 8 | . 6 2 Fabricators . | . . . Repair Stations . | . . . Recycling Units 11 | . 11 . Scanalyzers . | . . . Garrison Access . | . . . Terminal Hacks 5 | . 4 1 Record 4 | . 3 1 Disarm Traps 1 | . 1 . Fabricator Hacks . | . . . Repair Station Hacks . | . . . Recycling Unit Hacks 9 | . 9 . Recycle Component 7 | . 7 . Process 1 | . 1 . Retrieve Components 1 | . 1 . Scanalyzer . | . . . Garrison Access Hacks . | . . . Unauthorized Hacks . | . . . Terminals . | . . . Fabricators . | . . . Repair Stations . | . . . Recycling Units . | . . . Scanalyzers . | . . . Garrison Access . | . . . Data Cores Recovered . | . . . Used . | . . . Hacking Detections 4 | . 3 1 Full Trace Events . | . . . Feedback Events . | . . . Feedback Blocked . | . . . Robot Schematics Acquired . | . . . Robots Built . | . . . Authchips . | . . . Time . | . . . Total Robot Build Rating . | . . . Part Schematics Acquired . | . . . Parts Built . | . . . Authchips . | . . . Time . | . . . Total Part Build Rating . | . . . Parts Repaired . | . . . Time . | . . . Parts Recycled 7 | . 7 . Recycled Matter 189 | . 189 . Retrieved Matter . | . . . Retrieved Components . | . . . Parts Scanalyzed . | . . . Part Schematics Acquired . | . . . Parts Damaged . | . . . Bothacking | -11 -10 -9 ------------ Run | Yrd Mat Mat Used RIF Installer . | . . . Robots Hacked . | . . . Non-combat . | . . . Combat . | . . . Robot Hacks Applied . | . . . Relay Couplers Released . | . . . Fabnet Peak Effective % . | . . . Robots Rewired . | . . . Allies Hacked . | . . . Hacks Repelled . | . . . Allies | -11 -10 -9 -------- Run | Yrd Mat Mat Total Allies . | . . . Largest Group . | . . . Highest-Rated Group . | . . . Highest-Rated Ally . | . . . Total Orders . | . . . Ally Attacks . | . . . Total Damage . | . . . Kills . | . . . Allies Corrupted . | . . . Allies Melted . | . . . Intel | -11 -10 -9 ------- Run | Yrd Mat Mat Robot Analysis Total . | . . . Derelict Logs Recovered . | . . . Drone Launches . | . . . Drone Recoveries . | . . . Exploration | -11 -10 -9 ------------- Run | Yrd Mat Mat Turns Passed 3855 | 380 1975 1500 Spaces Moved 2003 | 456 1036 511 Core 34 | 33 . 1 Treads 141 | . . 141 Legs 1255 | . 886 369 Wheels 510 | 423 87 . Hover . | . . . Flight 63 | . 63 . Fastest Speed 50 | 50 80 190 Average Speed 176 | 77 175 267 Slowest Speed 700 | 80 210 700 Overloaded Moves . | . . . Propulsion Burnouts . | . . . Robots Hopped . | . . . Cave-ins Triggered . | . . . Exploration Rate (%) 41 | 15 80 29 Regions Visited 2 Branch Regions . Pre-discovered Areas . | . . . Known Exits Taken 1 | . 1 . Unknown Exits Taken 1 | 1 . . Scrap Searched . | . . . Spaces Dug . | . . . Terrain Destroyed 49 | . 42 7 Melee . | . . . Projectile . | . . . AOE 49 | . 42 7 Terrain Rammed . | . . . Walls Destroyed . | . . . Machines Disabled . | . . . Actions | -11 -10 -9 --------- Run | Yrd Mat Mat Total 2220 | 474 1147 599 Wait . | . . . Move 2001 | 455 1035 511 Hop . | . . . Pick Up 61 | 10 40 11 Fast Attach . | . . . Attach 36 | 6 13 17 Detach 12 | . 2 10 Swap 5 | . 1 4 Drop 31 | . 19 12 Fire 71 | 3 34 34 Melee . | . . . Ram . | . . . Kick 3 | . 3 . Crush . | . . . Escape Stasis . | . . . Rewire . | . . . Trap . | . . . Miscellaneous . | . . . Route ------- -11/Scrapyard -10/Materials (discovered 4 exits: *Mat x2 / *Min / *Sub) -9/Materials (discovered 2 exits: *Min x2) History --------- Turn | Location | Event 2 | -11/Scrapyard | Met Revision 17 57 | -11/Scrapyard | Discovered new exit (range 8) 381 | -11/Scrapyard | Entered Materials 382 | -10/Materials | Build established: Mutant 646 | -10/Materials | Discovered new exit (range 11) 658 | -10/Materials | Identified exit to Mines 1160 | -10/Materials | Discovered new exit (range 5) 1922 | -10/Materials | Discovered new exit (range 8) 1945 | -10/Materials | Identified exit to Subcaves 2314 | -10/Materials | Discovered new exit (range 12) 2337 | -10/Materials | Identified exit to Materials 2356 | -10/Materials | Entered another Materials area 2356 | -9/Materials | Evolved 2 slots: Utility x2 2861 | -9/Materials | Discovered new exit (range 11) 3664 | -9/Materials | Discovered new exit (range 12) 3667 | -9/Materials | Identified exit to Mines 3850 | -9/Materials | Core integrity fell below 50% 3855 | -9/Materials | Core integrity fell below 20% 3856 | -9/Materials | Self-destructed Last Messages --------------- reinforcements to Terminal M007. K-01 Serf cleans the Recycling Unit. K-01 Serf cleans the Machine. K-01 Serf cleans the Recycling Unit. Y-45 Defender destroyed. W-16 Scout sends out distress signal. Lgt. Ion Engine destroyed. K-01 Serf collects debris. Lgt. Assault Rifle destroyed. Hvy. EM Pulse Gun destroyed. K-01 Serf cleans the Atomic Centrifuge. Lgt. Treads destroyed. Atomic Centrifuge disabled. Seismic Detector destroyed. K-01 Serf collects debris. Critical hit (Burn: +37). Lgt. Treads destroyed. K-01 Serf collects debris. K-01 Serf cleans the Fusion Modulator. ECM Suite destroyed. Map ----- +----------------------------------------------------+ | """" #?#%#???????????????????????????????????????? | | ###+#####???????????????????????????????????? | | +###### #???????????????????????????????????? | | # %""" #??????????????????+##??????????????? | | # """" #????????????????? ??????????????? | | """ + """" #?????#????####### #???###????????? | | """ # #?????? ????^ #?? ????????? | | """ #* #??????? ???# ^ #? "?????????? | | ########???????? ??# "" # ??????????? | | #???????????????? ## Y" # ???????????? | | #????#########????+ "" + ?????????????? | | ### #????#"""""""#?????# #??????????????? | | ?## ##???#" |"! "#?????# ^ #??????????????? | | ?# #####" "##+#### [! #??????????????? | | ?# ! #??????????????? | | ?# > > #??????????????? | | ?# = #??????????????? | | ?# ##### ### #### ###%! #??????????????? | | ?# ###???###########+####+##? #??????????????? | | ?# #?????????????# k #? #??????????????? | | ?# #????????####?# """ """ #? #??????????????? | | ????????? # """Y""" #? ##?????????????? | | ??????????? rk """ "" # ##+###????????? | | ?????????????# g g# #????????? | | ######?????????????# g #????????? | | ???????????????????# @ g# ?????? | | ???????????????????# #?? ###+##????????? | | ???????????????????#+#########??####?????????????? | | ?????????????????????????????????????????????????? | | ?????????????????????????????????????????????????? | | ?????????????????????????????????????????????????? | | ?????????????????????????????????????????????????? | | ?????????????????????????????????????????????????? | | ?????????????????????????????????????????????????? | | ?????????????????????????????????????????????????? | | ?????????????????????????????????????????????????? | | ?????????????????????????????????????????????????? | | ?????????????????????????????????????????????????? | | ?????????????????????????????????????????????????? | | ?????????????????????????????????????????????????? | | ?????????????????????????????????????????????????? | | ?????????????????????????????????????????????????? | | ?????????????????????????????????????????????????? | | ?????????????????????????????????????????????????? | | ?????????????????????????????????????????????????? | | ?????????????????????????????????????????????????? | | ?????????????????????????????????????????????????? | | ?????????????????????????????????????????????????? | | ?????????????????????????????????????????????????? | | ?????????????????????????????????????????????????? | +----------------------------------------------------+ Best States ------------- Heat Dissipation 35 Energy Generation 10 Energy Capacity 250 Matter Stores 300 Matter Capacity 300 Sight Range 16 Terrain Scan Density 10 ECM Strength 1 Weapon Shielding 33 Evasion (%) 55 Recoil Reduction 2 Item Schematics ----------------- None Robot Schematics ------------------ None Fabricated ------------ Nothing Alien Tech Used ----------------- None Achievements -------------- It's Just You Storm Trooper Uninvited Guest Challenges ------------ None Game ------ Seed SapperLightShielding Manual? 0 Play Time 00:31:32 Cumulative 0.8 hours Start 2024.03.31 @ 14:00:13 End 2024.03.31 @ 14:30:53 Sessions 1 Manual Loads 0 Difficulty Rogue Special Mode None Game No. 2 Rogue 2 Adventurer 0 Explorer 0 Win Type - Total 0 Types 0/0/0/0/0/0/0/0/0 Lore% 0 Gallery% 2 Achievement% 1 Wizard Run 0 Options --------- Layout 1 ASCII 0 Keyboard 1 Movement Arrows Keybinds 0 Fullscreen 1 Font 24/Tallcaps Map View 50x35 Zoom Use 0% Tactical HUD 0 Map Filters NONE Filters NONE Steam 1 RUN: 0475a375-a876-4bd4-8f74-632e97cd62ed